Cogmind - Beta 15 @@@ ROGUE MODE // 2025.07.23 @ 20:11:53 Player: beans Result: Destroyed by Y-45 Defender with Heavy Assault Rifle Performance ------------- Evolutions (2) 1000 Regions Visited (5) 1000 Robots Destroyed (46) 230 Value Destroyed (1520) 1520 Prototype IDs (25) 500 Alien Tech Used (0) 0 Bonus (300) 300 TOTAL SCORE: 4550 Bonus ------- Aligned with FarCom 300 Cogmind --------- Core Integrity 0/550 Matter 280/300 Energy 83/100 System Corruption 0% Temperature Cool (9) Movement Core (50) Location -8/Materials Parts ------- > --- POWER (2) -------- (None) > --- PROPULSION (4) --- (None) > --- UTILITY (3) ------ Launcher Guidance Computer Launcher Guidance Computer > --- WEAPON (2) ------- (None) > --- INVENTORY (5) ---- Improved Signal Interpreter Spread Laser Spread Laser Improved Datajack Peak State ------------ > --- POWER ------------ (None) > --- PROPULSION ------- Light Treads Aerolev Unit Aerolev Unit > --- UTILITY ---------- 0b10 Alert Chip Launcher Guidance Computer Hardened Medium Armor Plating > --- WEAPON ----------- Assault Rifle Improved Assault Rifle > --- INVENTORY -------- Improved Signal Interpreter Launcher Guidance Computer Rocket Launcher Improved Datajack [Rating: 27] Favorites ----------- Power Light Ion Engine Engine Light Ion Engine Propulsion Light Treads Treads Light Treads Hover Unit Aerolev Unit Utility 0b10 Alert Chip Device Cryofiber Web Processor 0b10 Alert Chip Protection Hardened Medium Armor Plating Weapon Light Cannon Energy Gun EM Pulse Gun Ballistic Gun Improved Assault Rifle Ballistic Cannon Light Cannon Launcher Rocket Launcher Special Melee Weapon Improved Datajack Build | -11 -10 -10 -10 -9 -8 ------- Run | Yrd Mat Min Exi Min Mat Slots Evolved 4 | . . . . . 4 Power 1 | . . . . . 1 Propulsion 2 | . . . . . 2 Utility 1 | . . . . . 1 Weapon . | . . . . . . Parts Attached 29 | 4 2 . 1 . 22 Power 4 | 1 1 . . . 2 Engine 4 | 1 1 . . . 2 Core . | . . . . . . Reactor . | . . . . . . Propulsion 6 | 2 . . . . 4 Treads 4 | 2 . . . . 2 Leg . | . . . . . . Wheel . | . . . . . . Hover 2 | . . . . . 2 Flight . | . . . . . . Utility 5 | . . . 1 . 4 Device 1 | . . . . . 1 Storage . | . . . . . . Processor 3 | . . . 1 . 2 Hackware . | . . . . . . Protection 1 | . . . . . 1 Artifact . | . . . . . . Weapon 14 | 1 1 . . . 12 Energy Gun 5 | 1 . . . . 4 Energy Cannon . | . . . . . . Ballistic Gun 3 | . . . . . 3 Ballistic Cannon 2 | . 1 . . . 1 Launcher 3 | . . . . . 3 Special Weapon . | . . . . . . Impact Weapon . | . . . . . . Slashing Weapon . | . . . . . . Piercing Weapon . | . . . . . . Special Melee Weapon 1 | . . . . . 1 Unidentified Prototypes 2 | . . . . . 2 Parts Lost 17 | . . . . . 17 Power 3 | . . . . . 3 Propulsion 5 | . . . . . 5 Utility 3 | . . . . . 3 Weapon 6 | . . . . . 6 Highest Loss Streak 6 | . . . . . 6 To Critical Strikes . | . . . . . . Average Backups 2 | . . 1 1 1 3 Power . | . . 1 1 1 . Propulsion . | . . . . . . Utility . | . . . . . 1 Weapon . | . . . . . 1 Tool/Special . | . . . . . . Unused Backups 2 | 1 . . . . 1 Power . | . . . . . . Propulsion . | . . . . . . Utility 1 | . . . . . 1 Weapon 1 | 1 . . . . . Tool/Special . | . . . . . . Average Slot Usage (%) 69 | . 63 71 77 85 60 Engine 11 | . 14 14 14 14 9 Treads 20 | . 28 28 28 28 12 Device 3 | . . . . . 6 Processor 9 | . . . 6 14 10 Protection 1 | . . . . . 1 Energy Gun 8 | . 14 14 14 14 3 Ballistic Gun 2 | . . . . . 5 Ballistic Cannon 10 | . 6 14 14 14 7 Peak Build Rating 27 | 4 5 5 11 11 27 Average Rating 13 | 2 4 5 7 11 18 On Entrance 6 | . 4 5 5 11 11 Naked Turns . | . . . . . . Heaviest Build 30 | 5 8 8 8 8 30 Greatest Support 40 | 40 40 40 40 40 40 Greatest Overweight (x) 1 | . . . . . 1 Average Overweight (x) . | . . . . . . Largest Inventory Capacity 5 | 5 5 5 5 5 5 Average Capacity 5 | 5 5 5 5 5 5 Most Carried 5 | 2 1 1 2 2 5 Average Carried 2 | . . 1 1 1 4 Final Capacity 5 | 5 5 5 5 5 5 Final Carried 4 | . 1 1 1 2 4 Class Distribution -------------------- 89% | Mutant 10% | Scavenger-Mutant Dominant Class ---------------- Mutant | -10/Materials Mutant | -10/Mines Mutant | -10/Exiles Mutant | -9/Mines Mutant | -8/Materials Resources | -11 -10 -10 -10 -9 -8 ----------- Run | Yrd Mat Min Exi Min Mat Matter Collected 1350 | 228 38 46 . 42 996 Remotely . | . . . . . . Salvage Created 1358 | . 225 . . 156 977 Parts 87 | . 11 . . 6 70 Haulers Intercepted 3 | . 1 . . . 2 Recyclers Shooed 4 | . . . . . 4 Parts Field Recycled . | . . . . . . Retrieved Matter . | . . . . . . Parts Self-Destructed . | . . . . . . Prevented . | . . . . . . Kills | -11 -10 -10 -10 -9 -8 ------- Run | Yrd Mat Min Exi Min Mat Combat Hostiles Destroyed 34 | . 5 . . 4 25 Guns 11 | . 1 . . 2 8 Cannons 17 | . 4 . . 2 11 AOE 6 | . . . . . 6 Classes Destroyed 13 | . 3 . . . 10 Builder 2 | . . . . . 2 Hauler 3 | . 1 . . . 2 Recycler 2 | . . . . . 2 Mechanic 1 | . . . . . 1 Operator 2 | . 1 . . . 1 Watcher 2 | . . . . . 2 Swarmer 6 | . . . . . 6 Cutter 2 | . . . . . 2 Grunt 12 | . 5 . . 4 3 Sentry 7 | . . . . . 7 Specialist 2 | . . . . . 2 Hunter 4 | . . . . . 4 Heavy 1 | . . . . . 1 Best Kill Streak 8 | . 6 . . 3 8 Combat Bots Only 5 | . 4 . . 3 5 Max Kills in Single Turn 3 | . 1 . . 1 3 Gunslinging . | . . . . . . Exploded 2 | . . . . . 2 Melee . | . . . . . . Uniques/NPCs Destroyed . | . . . . . . Combat | -11 -10 -10 -10 -9 -8 -------- Run | Yrd Mat Min Exi Min Mat Hostile Shots Fired 215 | . 13 . . 9 193 Missed 77 | . 5 . . 2 70 Hits 138 | . 8 . . 7 123 Melee 5 | . . . . . 5 Projectile 133 | . 8 . . 7 118 AOE 2 | . . . . . 2 Critical Strikes 4 | . . . . . 4 Damage Taken 2493 | . 94 . . 82 2317 Core 580 | . . . . 22 558 Absorbed by Shields . | . . . . . . Core Remaining (%) 95 | 100 . . . 91 . Volleys Fired 174 | . 25 . . 8 141 Largest 2 | . 2 . . 2 2 Hottest 130 | . 70 . . 70 130 Shots Fired 266 | . 38 . . 16 212 Gun 156 | . 25 . . 8 123 Cannon 89 | . 13 . . 8 68 Launcher 21 | . . . . . 21 Special . | . . . . . . Kinetic 167 | . 13 . . 8 146 Thermal 13 | . . . . . 13 Explosive 21 | . . . . . 21 Electromagnetic 65 | . 25 . . 8 32 Robot Hit Streak 14 | . 9 . . 9 14 Robot Miss Streak 6 | . 4 . . 1 6 Penetration Max . | . . . . . . Secondary Targets . | . . . . . . Shots Hit Robots 186 | . 26 . . 10 150 Core Hits 102 | . 10 . . 5 87 Critical Kills 1 | . . . . . 1 Critical Parts Destroyed . | . . . . . . Critical Strikes 3 | . . . . . 3 Burn 1 | . . . . . 1 Destroy 1 | . . . . . 1 Blast 1 | . . . . . 1 Melee Attacks 4 | . . . . . 4 Impact . | . . . . . . Slashing . | . . . . . . Piercing . | . . . . . . Sneak Attacks 1 | . . . . . 1 Combat Hostiles . | . . . . . . Follow-up Attacks . | . . . . . . Damage Inflicted 3572 | . 449 . . 153 2970 Guns 1222 | . 201 . . 66 955 Cannons 1155 | . 210 . . 87 858 Explosions 1189 | . 38 . . . 1151 Melee . | . . . . . . Ramming 6 | . . . . . 6 Kinetic 1839 | . 210 . . 87 1542 Thermal 351 | . 38 . . . 313 Explosive 956 | . . . . . 956 Electromagnetic 409 | . 201 . . 66 142 Impact 11 | . . . . . 11 Slashing . | . . . . . . Piercing . | . . . . . . Highest Corruption . | . . . . . . Average Corruption . | . . . . . . Corruption Purged . | . . . . . . Corruption Blocked . | . . . . . . Overload Shots . | . . . . . . Overflow Damage 173 | . 8 . . . 165 Projectiles . | . . . . . . Explosions 173 | . 8 . . . 165 Melee . | . . . . . . Knockbacks 30 | . 1 . . 1 28 Impact . | . . . . . . Kinetic 28 | . 1 . . 1 26 Secondary 2 | . . . . . 2 Self-Inflicted Damage 226 | . . . . . 226 Shots 4 | . . . . . 4 Rammed 2 | . . . . . 2 Targets Rammed 2 | . . . . . 2 Kicked . | . . . . . . Crushed . | . . . . . . Highest Temperature 135 | . 135 . . 48 124 Average Temperature 45 | . 64 . . 17 41 Received Heat Transfer 420 | . 51 . . 45 324 Siege Activations . | . . . . . . Martial Activations . | . . . . . . Shielding Activations . | . . . . . . Robots Disrupted . | . . . . . . Combat Hostiles . | . . . . . . Robots Corrupted . | . . . . . . Combat Hostiles . | . . . . . . Parts Fried . | . . . . . . Impact Corruptions . | . . . . . . Robots Melted . | . . . . . . Combat Hostiles . | . . . . . . Parts Melted . | . . . . . . Heat Transferred 485 | . 50 . . . 435 Parts Sabotaged . | . . . . . . Parts Stolen . | . . . . . . Parts Stripped . | . . . . . . Power Chain Reactions 1 | . 1 . . . . Alert | -11 -10 -10 -10 -9 -8 ------- Run | Yrd Mat Min Exi Min Mat Maximum Alert Level 1 | . . . . . 1 Low Security (%) 93 | 100 100 100 . 100 88 Level 1 6 | . . . . . 11 Level 2 . | . . . . . . Level 3 . | . . . . . . Level 4 . | . . . . . . Level 5 . | . . . . . . High Security . | . . . . . . Max Security . | . . . . . . Peak Influence 382 | . 112 39 . 72 382 Initial 39 | . . 39 . . . Average 43 | . 36 14 . 10 64 Influence Increases 1142 | . 160 . . 115 867 Destroy 0b10 Robot/C 576 | . 100 . . 64 412 Destroy 0b10 Robot/NC 50 | . 10 . . . 40 Destroy Leader 178 | . 32 . . 8 138 Allied During Kill 7 | . . . . 7 . Disable Machine 153 | . 15 . . 36 102 Destroy Structure 139 | . 3 . . . 136 Lose Combat Pursuer 39 | . . . . . 39 Influence Decreases 760 | . 58 102 . 115 485 Entered New Map 63 | . . 63 . . . Time Decay 517 | . 58 39 . 95 325 Lost Part 160 | . . . . . 160 Lost Ally 20 | . . . . 20 . Squads Dispatched 9 | . 3 . . . 6 Investigation 1 | . 1 . . . . Extermination . | . . . . . . Reinforcement 8 | . 2 . . . 6 Assault . | . . . . . . Garrison . | . . . . . . Intercept . | . . . . . . Searches Triggered . | . . . . . . Construction Impeded 2 | . . . . . 2 Haulers Reinforced . | . . . . . . Active Scanning Responses . | . . . . . . Cargo Convoy Interrupts . | . . . . . . Stealth | -11 -10 -10 -10 -9 -8 --------- Run | Yrd Mat Min Exi Min Mat Distress Signals 6 | . 1 . . . 5 Communications Jammed . | . . . . . . Distress Signals . | . . . . . . Times Spotted 52 | . 9 . . 5 38 Peak Tracking Total 5 | . 4 . . 3 5 Tactical Retreats 3 | . . . . . 3 Traps | -11 -10 -10 -10 -9 -8 ------- Run | Yrd Mat Min Exi Min Mat Traps Triggered . | . . . . . . Indirectly . | . . . . . . Trap Hack Attempts . | . . . . . . Triggered . | . . . . . . Disarmed . | . . . . . . Reprogrammed . | . . . . . . Reused . | . . . . . . Traps Extracted . | . . . . . . Installed . | . . . . . . Triggered . | . . . . . . Machines | -11 -10 -10 -10 -9 -8 ---------- Run | Yrd Mat Min Exi Min Mat Machines Disabled 12 | . 1 . . 3 8 Max in Single Turn 5 | . 1 . . 1 5 Machines Repaired . | . . . . . . Machines Dismantled . | . . . . . . Machines Sabotaged . | . . . . . . Overloaded Fab Kills . | . . . . . . Hacking | -11 -10 -10 -10 -9 -8 --------- Run | Yrd Mat Min Exi Min Mat Machines Accessed 2 | . . . 2 . . Terminals . | . . . . . . Fabricators . | . . . . . . Repair Stations . | . . . . . . Recycling Units . | . . . . . . Scanalyzers . | . . . . . . Garrison Access . | . . . . . . Total Hacks 24 | . . . 24 . . Successful 24 | . . . 24 . . Failed . | . . . . . . Catastrophic . | . . . . . . Database Lockouts . | . . . . . . Manual 1 | . . . 1 . . Terminals . | . . . . . . Fabricators . | . . . . . . Repair Stations . | . . . . . . Recycling Units . | . . . . . . Scanalyzers . | . . . . . . Garrison Access . | . . . . . . Terminal Hacks 24 | . . . 24 . . Record 23 | . . . 23 . . Proto ID Catalog 1 | . . . 1 . . Fabricator Hacks . | . . . . . . Repair Station Hacks . | . . . . . . Recycling Unit Hacks . | . . . . . . Scanalyzer . | . . . . . . Garrison Access Hacks . | . . . . . . Unauthorized Hacks . | . . . . . . Terminals . | . . . . . . Fabricators . | . . . . . . Repair Stations . | . . . . . . Recycling Units . | . . . . . . Scanalyzers . | . . . . . . Garrison Access . | . . . . . . Data Cores Recovered . | . . . . . . Used . | . . . . . . Hacking Detections . | . . . . . . Full Trace Events . | . . . . . . Feedback Events . | . . . . . . Feedback Blocked . | . . . . . . Robot Schematics Acquired . | . . . . . . Robots Built . | . . . . . . Authchips . | . . . . . . Time . | . . . . . . Total Robot Build Rating . | . . . . . . Part Schematics Acquired . | . . . . . . Parts Built . | . . . . . . Authchips . | . . . . . . Time . | . . . . . . Total Part Build Rating . | . . . . . . Parts Repaired . | . . . . . . Time . | . . . . . . Parts Recycled . | . . . . . . Recycled Matter . | . . . . . . Retrieved Matter . | . . . . . . Retrieved Components . | . . . . . . Parts Scanalyzed . | . . . . . . Part Schematics Acquired . | . . . . . . Parts Damaged . | . . . . . . Bothacking | -11 -10 -10 -10 -9 -8 ------------ Run | Yrd Mat Min Exi Min Mat Used RIF Installer . | . . . . . . Robots Hacked 2 | . . . . . 2 Non-combat 1 | . . . . . 1 Combat 1 | . . . . . 1 Robot Hacks Applied 2 | . . . . . 2 parse_system 1 | . . . . . 1 find_recycling 1 | . . . . . 1 Relay Couplers Released . | . . . . . . Fabnet Peak Effective % . | . . . . . . Robots Rewired . | . . . . . . Allies Hacked . | . . . . . . Hacks Repelled . | . . . . . . Allies | -11 -10 -10 -10 -9 -8 -------- Run | Yrd Mat Min Exi Min Mat Total Allies 3 | . . 3 . . . Largest Group 3 | . . 3 3 3 1 Highest-Rated Group 40 | . . 40 40 40 16 Highest-Rated Ally 16 | . . 16 16 16 16 Total Orders . | . . . . . . Ally Attacks 18 | . . . . 13 5 Total Damage 141 | . . . . 86 55 Kills . | . . . . . . Allies Corrupted . | . . . . . . Allies Melted . | . . . . . . Intel | -11 -10 -10 -10 -9 -8 ------- Run | Yrd Mat Min Exi Min Mat Active Infowar (turns) . | . . . . . . Robot Analysis Total . | . . . . . . Derelict Logs Recovered 1 | . . . . 1 . Drone Launches . | . . . . . . Drone Recoveries . | . . . . . . Exploration | -11 -10 -10 -10 -9 -8 ------------- Run | Yrd Mat Min Exi Min Mat Turns Passed 2706 | 52 168 129 373 612 1372 Spaces Moved 1231 | 38 59 79 227 280 548 Core 57 | 16 . . . . 41 Treads 1084 | 22 59 79 227 280 417 Legs . | . . . . . . Wheels . | . . . . . . Hover 90 | . . . . . 90 Flight . | . . . . . . Fastest Speed 46 | 50 160 160 160 160 46 Average Speed 149 | 113 160 160 160 160 139 Slowest Speed 240 | 160 160 160 160 160 240 Overloaded Moves . | . . . . . . Propulsion Burnouts . | . . . . . . Robots Hopped . | . . . . . . Potential Cave-ins . | . . . . . . Cave-ins Triggered . | . . . . . . Exploration Rate (%) 32 | 3 21 16 61 64 32 Regions Visited 5 Branch Regions 3 Pre-discovered Areas 1 | . . . 1 . . Known Exits Taken . | . . . . . . Unknown Exits Taken 5 | 1 1 1 1 1 . Scrap Searched 1 | . . 1 . . . Spaces Dug . | . . . . . . Terrain Destroyed 152 | . 3 . . . 149 Melee . | . . . . . . Projectile . | . . . . . . AOE 152 | . 3 . . . 149 Terrain Rammed . | . . . . . . Walls Destroyed . | . . . . . . Machines Disabled . | . . . . . . Actions | -11 -10 -10 -10 -9 -8 --------- Run | Yrd Mat Min Exi Min Mat Total 1832 | 47 94 82 237 428 944 Wait 358 | . 7 4 9 140 198 Move 1226 | 37 58 78 226 279 548 Hop . | . . . . . . Pick Up 25 | 5 2 . 1 1 16 Fast Attach 6 | . . . . . 6 Attach 20 | 4 1 . 1 . 14 Detach 3 | . . . . . 3 Swap 7 | . 1 . . . 6 Drop 7 | 1 . . . . 6 Fire 174 | . 25 . . 8 141 Melee 4 | . . . . . 4 Ram 1 | . . . . . 1 Kick . | . . . . . . Crush 1 | . . . . . 1 Escape Stasis . | . . . . . . Rewire . | . . . . . . Trap . | . . . . . . Miscellaneous . | . . . . . . Route ------- -11/Scrapyard -10/Materials -10/Mines -10/Exiles -9/Mines -8/Materials (discovered 1 exit: [*Fac]) History --------- Turn | Location | Event 12 | -11/Scrapyard | Discovered new exit (range 16) 53 | -11/Scrapyard | Entered Materials 188 | -10/Materials | Discovered new exit (range 16) 221 | -10/Materials | Entered Mines 282 | -10/Mines | Assisted by bots powering up and referring to "LRC-V3" 308 | -10/Mines | Build established: Mutant 340 | -10/Mines | Deemed a non-threat by the Exiles lab entrance 340 | -10/Mines | Discovered new exit (range 5) 350 | -10/Mines | Entered Exiles 350 | -10/Exiles | Accompanied by 3 allies 389 | -10/Exiles | Met 8R-AWN 416 | -10/Exiles | Met EX-HEX 464 | -10/Exiles | Met EX-BIN 483 | -10/Exiles | Aligned with FarCom system 485 | -10/Exiles | Given EX-Vault access code 541 | -10/Exiles | Opened EX-Vault 550 | -10/Exiles | Found 0b10 Alert Chip 583 | -10/Exiles | Warned to stay clear of 0b10 Research branches 626 | -10/Exiles | Met EX-DEC 636 | -10/Exiles | Learned location of Zion (-7) 701 | -10/Exiles | Discovered new exit (range 10) 723 | -10/Exiles | Left Exiles lab with 0b10 Alert Chip 723 | -10/Exiles | Entered Mines 723 | -9/Mines | Accompanied by 3 allies 733 | -9/Mines | Met a Derelict bent on vengeance 836 | -9/Mines | Received a Rocket Launcher from a helpful Derelict 976 | -9/Mines | Learned Materials interactive machine intel 1208 | -9/Mines | Discovered new exit (range 13) 1335 | -9/Mines | Entered Materials 1335 | -8/Materials | Accompanied by 1 ally 1335 | -8/Materials | Evolved 4 slots: Power x1, Propulsion x2, Utility x1 1336 | -8/Materials | Loaded intel: 19 interactive machine locations 1676 | -8/Materials | Lost 3 parts (1p1n1w) 2550 | -8/Materials | Lost 3 parts (1p1u1w) 2597 | -8/Materials | Discovered new exit (range 15) 2664 | -8/Materials | Lost 6 parts (1n2u3w) 2678 | -8/Materials | Core integrity fell below 50% 2692 | -8/Materials | Core integrity fell below 20% 2707 | -8/Materials | Destroyed by Y-45 Defender with Heavy Assault Rifle Last Messages --------------- K-01 Serf collects debris. R-06 Scavenger collects Aluminum Leg. Acquired 3 matter. Acquired 52 matter. U-05 Engineer destroyed. Acquired 49 matter. Acquired 27 matter. C-17 Slicer destroyed. Knocked back. C-17 Slicer knocked back. Acquired Missile Launcher. C-17 Slicer destroyed. Atomic Centrifuge disabled. Destroyed Surge Thruster. C-17 Slicer destroyed. Missile Launcher destroyed. Destroyed Missile Launcher. Acquired 34 matter. Acquired Concussive RPG. Concussive RPG expended. Map ----- +----------------------------------------------------+ | ??????????????????????????????????????? | | ??????????????????????????????????????? | | ??????????????????????????????????????? | | ?? ?????????????????????????????????? | | ?? ?????????????????????????????????? | | ?? ?????????????????????????????????? | | ?? ?????????????????????????????????? | | ?? ??????????????????????? ?????????? | | ?? ?????????????????????? ?????????? | | ?? ?????????????????????? ????????? | | ?? ?????????????????????? ????????? | | ??# #?????????????????????? ????????? | | ??# #???##????????????????? ????????? | | ??# #### #????????????????? ????????? | | ??# # ######+#??????????# #????????? | | ??# #" # """ ########???# #????????? | | ??# #T # """%%# #???# #????##??? | | ??# #" # """ + #???# #?### #### | | ??# # =!# #% #???# #?# # | | #?# + =!#? ?# #??## ### """ # | | ### # #?? ?# #??# ## """ # | | %## # #### ### #?## ## """ # | | ## # ## # ###### # # | | % # # = ## = " # | | %= Y * % | | ######= # @ | | ##??###??# %# ######## | | #???????### ### #??# # # | | ###?????????# #?# #??#### # | | ##??????????# #?# ""#?????# # | | ????????????# #?# Y"#?????# # | | ???########?# #?# ""#?????# ## | | ???#==!!!!#?# #?# #?????# ######## | | ???#== !!#?# #?########?????# #??????? | | ???# ### #?#######??????# #??????? | | #### ### #??????# #??????? | | % = % #??????# #??????? | | %[ " #??????# #??????? | | %= ! #??????# #??????? | | ###### !%#### % #??????# #??????? | | ?????############# ##??????# #??????? | | ???????# # #???????# #??????? | | ???????# """ T + #?###???# #??????? | | ???????# """ # ### ##### #??????? | | ???????# """ # # [[## #??????? | | ???????# # # [[## #??????? | | ???????# # # ## #??????? | | ???????# * # + "T" ## #??????? | | ???????# # # """ ## #??????? | | ???????####+###### # ## ###????? | +----------------------------------------------------+ Best States ------------- Heat Dissipation 31 Energy Generation 21 Energy Capacity 305 Matter Stores 300 Matter Capacity 300 Sight Range 16 Terrain Scan Density 10 Base Temperature (-) 100 Armor Coverage 225 Evasion (%) 55 Launcher Accuracy 40 Recoil Reduction 2 Item Schematics ----------------- None Robot Schematics ------------------ None Fabricated ------------ Nothing Repaired ---------- Nothing Alien Tech Used ----------------- None Achievements -------------- None Challenges ------------ None Game ------ Seed MyomerCobblerStrikerail Manual? 0 Play Time 00:20:37 Cumulative 66.6 hours Start 2025.07.23 @ 19:51:12 End 2025.07.23 @ 20:11:53 Sessions 1 Manual Loads 0 Difficulty Rogue Special Mode None Game No. 277 Rogue 277 Adventurer 0 Explorer 0 Win Type - Total 0 Types 0/0/0/0/0/0/0/0/0/0 Lore% 43 Gallery% 32 Achievement% 26 Wizard Run 0 Options --------- Layout 2 ASCII 0 Keyboard 0 Movement Mouse Keybinds 0 Fullscreen 1 Font 24/Terminus Map View 50x44 Zoom Use 0% Tactical HUD 0 Map Filters NONE Filters NONE Steam 1 RUN: 2fbd0af5-31e1-48e4-bb4f-03a97f3f7282